[Event "Titled Tuesday Blitz August 16 Early 2022"]
[White "Qashashvili, Alexandre"]
[Black "Quispe Santacruz, Javier"]
[WhiteFideId "13600842"]
[BlackFideId "3800920"]
[WhiteElo "2316"]
[BlackElo "1929"]
[Result "1-0"]
[Round "10"]
[TimeControl "180+2"]
[Date "2022.08.18"]
[WhiteClock "0:00:00"]
[BlackClock "0:00:00"]

1. e4 {[%clk 0:00:00]}  e5 {[%clk 0:00:00]} 2. Nf3 {[%clk 0:00:00]}  Nc6 {[%clk 0:00:00]} 3. Bc4 {[%clk 0:00:00]}  Bc5 {[%clk 0:00:00]} 4. d3 {[%clk 0:00:00]}  Nf6 {[%clk 0:00:00]} 5. h3 {[%clk 0:00:00]}  d6 {[%clk 0:00:00]} 6. Be3 {[%clk 0:00:00]}  Bb6 {[%clk 0:00:00]} 7. Bxb6 {[%clk 0:00:00]}  axb6 {[%clk 0:00:00]} 8. a3 {[%clk 0:00:00]}  O-O {[%clk 0:00:00]} 9. Nbd2 {[%clk 0:00:00]}  d5 {[%clk 0:00:00]} 10. exd5 {[%clk 0:00:00]}  Nxd5 {[%clk 0:00:00]} 11. Bxd5 {[%clk 0:00:00]}  Qxd5 {[%clk 0:00:00]} 12. O-O {[%clk 0:00:00]}  Re8 {[%clk 0:00:00]} 13. Re1 {[%clk 0:00:00]}  Bf5 {[%clk 0:00:00]} 14. Nf1 {[%clk 0:00:00]}  Rad8 {[%clk 0:00:00]} 15. Ng3 {[%clk 0:00:00]}  Bg6 {[%clk 0:00:00]} 16. Qe2 {[%clk 0:00:00]}  f6 {[%clk 0:00:00]} 17. Ne4 {[%clk 0:00:00]}  Nd4 {[%clk 0:00:00]} 18. Nxd4 {[%clk 0:00:00]}  Qxd4 {[%clk 0:00:00]} 19. Nc3 {[%clk 0:00:00]}  c6 {[%clk 0:00:00]} 20. Qe3 {[%clk 0:00:00]}  Qxe3 {[%clk 0:00:00]} 21. fxe3 {[%clk 0:00:00]}  b5 {[%clk 0:00:00]} 22. e4 {[%clk 0:00:00]}  Kf7 {[%clk 0:00:00]} 23. Kf2 {[%clk 0:00:00]}  Ke6 {[%clk 0:00:00]} 24. Ke3 {[%clk 0:00:00]}  Rd7 {[%clk 0:00:00]} 25. Ne2 {[%clk 0:00:00]}  Ra8 {[%clk 0:00:00]} 26. Rf1 {[%clk 0:00:00]}  Ra4 {[%clk 0:00:00]} 27. Nc3 {[%clk 0:00:00]}  Ra8 {[%clk 0:00:00]} 28. Ne2 {[%clk 0:00:00]}  Ra4 {[%clk 0:00:00]} 29. Rae1 {[%clk 0:00:00]}  b4 {[%clk 0:00:00]} 30. axb4 {[%clk 0:00:00]}  Rxb4 {[%clk 0:00:00]} 31. b3 {[%clk 0:00:00]}  c5 {[%clk 0:00:00]} 32. Ra1 {[%clk 0:00:00]}  b5 {[%clk 0:00:00]} 33. Ra6+ {[%clk 0:00:00]}  Rd6 {[%clk 0:00:00]} 34. Rfa1 {[%clk 0:00:00]}  c4 {[%clk 0:00:00]} 35. Rxd6+ {[%clk 0:00:00]}  Kxd6 {[%clk 0:00:00]} 36. Ra6+ {[%clk 0:00:00]}  Kc5 {[%clk 0:00:00]} 37. bxc4 {[%clk 0:00:00]}  bxc4 {[%clk 0:00:00]} 38. Nc3 {[%clk 0:00:00]}  cxd3 {[%clk 0:00:00]} 39. cxd3 {[%clk 0:00:00]}  Rb3 {[%clk 0:00:00]} 40. Nd5 {[%clk 0:00:00]}  Rb1 {[%clk 0:00:00]} 41. Ra5+ {[%clk 0:00:00]}  Kc6 {[%clk 0:00:00]} 42. Ne7+ {[%clk 0:00:00]}  Kb6 {[%clk 0:00:00]} 43. Ra2 {[%clk 0:00:00]}  Rb3 {[%clk 0:00:00]} 44. Nxg6 {[%clk 0:00:00]}  hxg6 {[%clk 0:00:00]} 45. Rc2 {[%clk 0:00:00]}  Ra3 {[%clk 0:00:00]} 46. Rc8 {[%clk 0:00:00]}  Ra7 {[%clk 0:00:00]} 47. h4 {[%clk 0:00:00]}  Rd7 {[%clk 0:00:00]} 48. g3 {[%clk 0:00:00]}  Kb7 {[%clk 0:00:00]} 49. Rc1 {[%clk 0:00:00]}  Kb6 {[%clk 0:00:00]} 50. g4 {[%clk 0:00:00]}  Kb7 {[%clk 0:00:00]} 51. h5 {[%clk 0:00:00]}  gxh5 {[%clk 0:00:00]} 52. gxh5 {[%clk 0:00:00]}  Kb6 {[%clk 0:00:00]} 53. Rf1 {[%clk 0:00:00]}  Kb7 {[%clk 0:00:00]} 54. h6 {[%clk 0:00:00]}  gxh6 {[%clk 0:00:00]} 55. Rxf6 {[%clk 0:00:00]} 1-0


[Site "https://www.chess.com"]

[Event "Titled Tuesday Blitz August 16 Early 2022"]
[White "Rostomyan, Mikayel"]
[Black "Agasarov, Benik"]
[WhiteFideId "13313754"]
[BlackFideId "13314823"]
[WhiteElo "1426"]
[BlackElo "2152"]
[Result "0-1"]
[Round "10"]
[TimeControl "180+1"]
[Date "2022.08.16"]
[WhiteClock "0:00:01"]
[BlackClock "0:00:36"]

1. e4 {[%clk 0:03:00]}  e5 {[%clk 0:02:58]} 2. Nf3 {[%clk 0:03:00]}  Nc6 {[%clk 0:02:58]} 3. Nc3 {[%clk 0:03:01]}  Nf6 {[%clk 0:02:58]} 4. Nxe5 {[%clk 0:03:01]}  Nxe5 {[%clk 0:02:57]} 5. d4 {[%clk 0:03:01]}  Ng6 {[%clk 0:02:57]} 6. e5 {[%clk 0:03:00]}  Ng8 {[%clk 0:02:57]} 7. Bc4 {[%clk 0:03:00]}  d5 {[%clk 0:02:50]} 8. Bxd5 {[%clk 0:03:00]}  c6 {[%clk 0:02:51]} 9. Bb3 {[%clk 0:03:00]}  Be6 {[%clk 0:02:51]} 10. Be3 {[%clk 0:02:49]}  N8e7 {[%clk 0:02:48]} 11. h4 {[%clk 0:02:48]}  Nd5 {[%clk 0:02:46]} 12. h5 {[%clk 0:02:43]}  Nge7 {[%clk 0:02:45]} 13. Ne4 {[%clk 0:02:36]}  Nxe3 {[%clk 0:02:42]} 14. fxe3 {[%clk 0:02:21]}  Nd5 {[%clk 0:02:39]} 15. Qf3 {[%clk 0:02:16]}  b5 {[%clk 0:02:32]} 16. h6 {[%clk 0:02:08]}  Qa5+ {[%clk 0:02:09]} 17. c3 {[%clk 0:02:01]}  O-O-O {[%clk 0:02:00]} 18. Ng5 {[%clk 0:01:25]}  gxh6 {[%clk 0:01:46]} 19. Nxf7 {[%clk 0:01:16]}  Bxf7 {[%clk 0:01:46]} 20. Qxf7 {[%clk 0:01:17]}  Qc7 {[%clk 0:01:47]} 21. Qf3 {[%clk 0:00:51]}  Be7 {[%clk 0:01:46]} 22. e4 {[%clk 0:00:50]}  Nb6 {[%clk 0:01:44]} 23. O-O-O {[%clk 0:00:47]}  a5 {[%clk 0:01:43]} 24. Kc2 {[%clk 0:00:42]}  a4 {[%clk 0:01:42]} 25. Be6+ {[%clk 0:00:42]}  Kb7 {[%clk 0:01:42]} 26. Rxh6 {[%clk 0:00:41]}  Rdf8 {[%clk 0:01:37]} 27. Qe2 {[%clk 0:00:32]}  Bg5 {[%clk 0:01:33]} 28. Rh5 {[%clk 0:00:25]}  h6 {[%clk 0:01:33]} 29. Rhh1 {[%clk 0:00:21]}  Qe7 {[%clk 0:01:26]} 30. d5 {[%clk 0:00:20]}  Qc5 {[%clk 0:01:18]} 31. dxc6+ {[%clk 0:00:18]}  Ka6 {[%clk 0:01:17]} 32. Bd5 {[%clk 0:00:10]}  Rf2 {[%clk 0:01:16]} 33. Rhe1 {[%clk 0:00:09]}  Rxe2+ {[%clk 0:01:16]} 34. Rxe2 {[%clk 0:00:10]}  b4 {[%clk 0:01:14]} 35. Rd3 {[%clk 0:00:08]}  Rf8 {[%clk 0:01:11]} 36. b3 {[%clk 0:00:07]}  Rf2 {[%clk 0:01:08]} 37. Kd1 {[%clk 0:00:04]}  Rxe2 {[%clk 0:01:07]} 38. Kxe2 {[%clk 0:00:05]}  bxc3 {[%clk 0:01:07]} 39. Bc4+ {[%clk 0:00:05]}  Nxc4 {[%clk 0:01:07]} 40. Rxc3 {[%clk 0:00:06]}  axb3 {[%clk 0:00:47]} 41. axb3 {[%clk 0:00:06]}  Qxc6 {[%clk 0:00:42]} 42. Rxc4 {[%clk 0:00:06]}  Qb5 {[%clk 0:00:43]} 43. Kf2 {[%clk 0:00:04]}  Qxb3 {[%clk 0:00:43]} 44. Rc6+ {[%clk 0:00:04]}  Kb5 {[%clk 0:00:42]} 45. Rd6 {[%clk 0:00:04]}  Qb2+ {[%clk 0:00:42]} 46. Kf3 {[%clk 0:00:05]}  Qc3+ {[%clk 0:00:38]} 47. Kg4 {[%clk 0:00:04]}  Qe3 {[%clk 0:00:37]} 48. Kf5 {[%clk 0:00:01]}  Qf4+ {[%clk 0:00:36]} 49. Ke6 {[%clk 0:00:01]}  Qxe4 {[%clk 0:00:36]} 0-1


[Site "https://www.chess.com"]

[Event "Titled Tuesday Blitz August 16 Early 2022"]
[White "Rostovtsev, Dmitry"]
[Black "Janaszak, Dawid"]
[WhiteFideId "34278320"]
[BlackFideId "1119206"]
[WhiteElo "2295"]
[BlackElo "2165"]
[Result "1-0"]
[Round "10"]
[TimeControl "180+1"]
[Date "2022.08.16"]
[WhiteClock "0:00:04"]
[BlackClock "0:00:10"]

1. d4 {[%clk 0:03:00]}  d5 {[%clk 0:03:00]} 2. Nf3 {[%clk 0:03:00]}  c6 {[%clk 0:02:59]} 3. g3 {[%clk 0:03:00]}  Bf5 {[%clk 0:02:59]} 4. Bg2 {[%clk 0:03:00]}  e6 {[%clk 0:03:00]} 5. O-O {[%clk 0:03:01]}  h6 {[%clk 0:03:00]} 6. c4 {[%clk 0:03:01]}  Nf6 {[%clk 0:03:00]} 7. Nc3 {[%clk 0:02:58]}  Be7 {[%clk 0:02:56]} 8. cxd5 {[%clk 0:02:58]}  exd5 {[%clk 0:02:56]} 9. Ne5 {[%clk 0:02:55]}  O-O {[%clk 0:02:56]} 10. Bf4 {[%clk 0:02:53]}  Nbd7 {[%clk 0:02:54]} 11. Rc1 {[%clk 0:02:52]}  Nb6 {[%clk 0:02:53]} 12. Qb3 {[%clk 0:02:48]}  Ne8 {[%clk 0:02:46]} 13. a4 {[%clk 0:02:24]}  a5 {[%clk 0:02:47]} 14. Qa2 {[%clk 0:02:15]}  Nd6 {[%clk 0:02:46]} 15. b3 {[%clk 0:02:15]}  Bg5 {[%clk 0:02:25]} 16. Qd2 {[%clk 0:02:14]}  Bxf4 {[%clk 0:02:22]} 17. Qxf4 {[%clk 0:02:15]}  Qg5 {[%clk 0:02:23]} 18. Nxc6 {[%clk 0:02:13]}  bxc6 {[%clk 0:02:13]} 19. Qxd6 {[%clk 0:02:11]}  Rac8 {[%clk 0:02:09]} 20. Qc5 {[%clk 0:02:08]}  Nd7 {[%clk 0:02:04]} 21. Qxa5 {[%clk 0:02:08]}  Rfe8 {[%clk 0:01:57]} 22. e3 {[%clk 0:02:04]}  h5 {[%clk 0:01:53]} 23. Qa6 {[%clk 0:01:23]}  h4 {[%clk 0:01:46]} 24. Nxd5 {[%clk 0:01:13]}  Nb8 {[%clk 0:01:32]} 25. Qa5 {[%clk 0:01:04]}  cxd5 {[%clk 0:01:30]} 26. Qxd5 {[%clk 0:01:05]}  hxg3 {[%clk 0:01:15]} 27. hxg3 {[%clk 0:01:04]}  Rcd8 {[%clk 0:00:55]} 28. Qf3 {[%clk 0:01:01]}  Nd7 {[%clk 0:00:47]} 29. Qf4 {[%clk 0:00:51]}  Qg6 {[%clk 0:00:44]} 30. a5 {[%clk 0:00:42]}  Nf6 {[%clk 0:00:44]} 31. Rc5 {[%clk 0:00:33]}  Bd3 {[%clk 0:00:32]} 32. Rfc1 {[%clk 0:00:31]}  Ne4 {[%clk 0:00:32]} 33. Re5 {[%clk 0:00:28]}  Rxe5 {[%clk 0:00:30]} 34. Qxe5 {[%clk 0:00:26]}  Nd2 {[%clk 0:00:28]} 35. Rc6 {[%clk 0:00:20]}  Qg4 {[%clk 0:00:26]} 36. Rc1 {[%clk 0:00:12]}  Nf3+ {[%clk 0:00:25]} 37. Bxf3 {[%clk 0:00:11]}  Qxf3 {[%clk 0:00:26]} 38. Qf4 {[%clk 0:00:11]}  Qd5 {[%clk 0:00:22]} 39. b4 {[%clk 0:00:08]}  Qb5 {[%clk 0:00:22]} 40. Rc7 {[%clk 0:00:07]}  Rf8 {[%clk 0:00:22]} 41. d5 {[%clk 0:00:03]}  Qxd5 {[%clk 0:00:22]} 42. Qd4 {[%clk 0:00:03]}  Qf5 {[%clk 0:00:21]} 43. Rc5 {[%clk 0:00:03]}  Qg6 {[%clk 0:00:21]} 44. b5 {[%clk 0:00:04]}  Be4 {[%clk 0:00:19]} 45. b6 {[%clk 0:00:03]}  Qg4 {[%clk 0:00:19]} 46. Rc4 {[%clk 0:00:01]}  f5 {[%clk 0:00:19]} 47. Qe5 {[%clk 0:00:01]}  Qf3 {[%clk 0:00:19]} 48. Qe6+ {[%clk 0:00:02]}  Kh7 {[%clk 0:00:19]} 49. Rxe4 {[%clk 0:00:02]}  fxe4 {[%clk 0:00:20]} 50. Qh3+ {[%clk 0:00:03]}  Kg8 {[%clk 0:00:20]} 51. Qg2 {[%clk 0:00:03]}  Qd1+ {[%clk 0:00:20]} 52. Qf1 {[%clk 0:00:04]}  Qa4 {[%clk 0:00:19]} 53. a6 {[%clk 0:00:03]}  Rb8 {[%clk 0:00:17]} 54. b7 {[%clk 0:00:04]}  Qc6 {[%clk 0:00:17]} 55. Qe2 {[%clk 0:00:03]}  Qb6 {[%clk 0:00:16]} 56. Kg2 {[%clk 0:00:03]}  Kf7 {[%clk 0:00:15]} 57. Qc4+ {[%clk 0:00:03]}  Kf8 {[%clk 0:00:13]} 58. Qxe4 {[%clk 0:00:03]}  Qxa6 {[%clk 0:00:12]} 59. Qf4+ {[%clk 0:00:03]}  Ke7 {[%clk 0:00:11]} 60. Qxb8 {[%clk 0:00:04]}  Qc6+ {[%clk 0:00:12]} 61. Kh2 {[%clk 0:00:03]}  Qf6 {[%clk 0:00:10]} 62. Qc7+ {[%clk 0:00:02]}  Ke6 {[%clk 0:00:09]} 63. Qf4 {[%clk 0:00:02]}  Qb2 {[%clk 0:00:08]} 64. b8=Q {[%clk 0:00:01]}  Qb1 {[%clk 0:00:09]} 65. Qbe5+ {[%clk 0:00:01]}  Kd7 {[%clk 0:00:09]} 66. Qfd4+ {[%clk 0:00:02]}  Kc6 {[%clk 0:00:10]} 67. Qec5+ {[%clk 0:00:03]}  Kb7 {[%clk 0:00:10]} 68. Qdb4+ {[%clk 0:00:04]}  Ka8 {[%clk 0:00:10]} 69. Qxb1 {[%clk 0:00:03]}  g5 {[%clk 0:00:11]} 70. Qc8+ {[%clk 0:00:04]}  Ka7 {[%clk 0:00:10]} 71. Qcb7# {[%clk 0:00:04]} 1-0


[Site "https://www.chess.com"]

[Event "Titled Tuesday Blitz August 16 Early 2022"]
[White "Salem, A.R. Saleh"]
[Black "Hess, Robert"]
[WhiteFideId "9301348"]
[BlackFideId "2022036"]
[WhiteElo "2674"]
[BlackElo "2557"]
[Result "1/2-1/2"]
[Round "10"]
[TimeControl "180+1"]
[Date "2022.08.16"]
[WhiteClock "0:00:07"]
[BlackClock "0:00:05"]

1. d4 {[%clk 0:03:00]}  Nf6 {[%clk 0:02:57]} 2. c4 {[%clk 0:03:01]}  e6 {[%clk 0:02:57]} 3. Nc3 {[%clk 0:03:02]}  d5 {[%clk 0:02:58]} 4. cxd5 {[%clk 0:03:02]}  exd5 {[%clk 0:02:58]} 5. Bg5 {[%clk 0:03:02]}  Bb4 {[%clk 0:02:57]} 6. e3 {[%clk 0:03:01]}  h6 {[%clk 0:02:56]} 7. Bh4 {[%clk 0:03:02]}  g5 {[%clk 0:02:51]} 8. Bg3 {[%clk 0:03:03]}  Ne4 {[%clk 0:02:52]} 9. a3 {[%clk 0:03:03]}  Nxc3 {[%clk 0:02:20]} 10. Qb3 {[%clk 0:03:01]}  Ba5 {[%clk 0:02:16]} 11. bxc3 {[%clk 0:03:01]}  O-O {[%clk 0:02:14]} 12. Bd3 {[%clk 0:02:41]}  c5 {[%clk 0:02:11]} 13. dxc5 {[%clk 0:02:40]}  Nd7 {[%clk 0:02:09]} 14. Bd6 {[%clk 0:02:39]}  Re8 {[%clk 0:02:02]} 15. Ne2 {[%clk 0:02:40]}  b6 {[%clk 0:01:55]} 16. cxb6 {[%clk 0:01:58]}  Qxb6 {[%clk 0:01:55]} 17. Qxb6 {[%clk 0:01:32]}  axb6 {[%clk 0:01:42]} 18. Bb5 {[%clk 0:01:28]}  d4 {[%clk 0:01:22]} 19. O-O {[%clk 0:00:53]}  Re6 {[%clk 0:00:48]} 20. Bb4 {[%clk 0:00:40]}  dxe3 {[%clk 0:00:49]} 21. Nd4 {[%clk 0:00:38]}  Re5 {[%clk 0:00:30]} 22. fxe3 {[%clk 0:00:31]}  Nf8 {[%clk 0:00:08]} 23. Rae1 {[%clk 0:00:17]}  Bxb4 {[%clk 0:00:04]} 24. axb4 {[%clk 0:00:18]}  Ra3 {[%clk 0:00:03]} 25. Bc4 {[%clk 0:00:18]}  Ne6 {[%clk 0:00:02]} 26. Nb5 {[%clk 0:00:19]}  Ra8 {[%clk 0:00:01]} 27. Nd6 {[%clk 0:00:19]}  Ba6 {[%clk 0:00:01]} 28. Bxa6 {[%clk 0:00:19]}  Rxa6 {[%clk 0:00:02]} 29. Nxf7 {[%clk 0:00:20]}  Re4 {[%clk 0:00:02]} 30. Nxh6+ {[%clk 0:00:20]}  Kg7 {[%clk 0:00:02]} 31. Nf5+ {[%clk 0:00:21]}  Kg6 {[%clk 0:00:03]} 32. Nd4 {[%clk 0:00:20]}  Nc7 {[%clk 0:00:03]} 33. Ra1 {[%clk 0:00:19]}  Rxa1 {[%clk 0:00:02]} 34. Rxa1 {[%clk 0:00:19]}  Rxe3 {[%clk 0:00:02]} 35. Rc1 {[%clk 0:00:18]}  Nd5 {[%clk 0:00:03]} 36. Nb5 {[%clk 0:00:18]}  Rd3 {[%clk 0:00:02]} 37. h3 {[%clk 0:00:14]}  Rd2 {[%clk 0:00:03]} 38. Re1 {[%clk 0:00:10]}  Nf4 {[%clk 0:00:02]} 39. g3 {[%clk 0:00:07]}  Rg2+ {[%clk 0:00:03]} 40. Kh1 {[%clk 0:00:08]}  Rxg3 {[%clk 0:00:04]} 41. Nd6 {[%clk 0:00:07]}  Rxh3+ {[%clk 0:00:03]} 42. Kg1 {[%clk 0:00:08]}  Rxc3 {[%clk 0:00:04]} 43. Re5 {[%clk 0:00:08]}  Rc1+ {[%clk 0:00:04]} 44. Kh2 {[%clk 0:00:07]}  Rc2+ {[%clk 0:00:04]} 45. Kg1 {[%clk 0:00:08]}  Nd3 {[%clk 0:00:04]} 46. Re6+ {[%clk 0:00:08]}  Kh5 {[%clk 0:00:05]} 47. b5 {[%clk 0:00:08]}  Rb2 {[%clk 0:00:05]} 48. Re4 {[%clk 0:00:08]}  Rb1+ {[%clk 0:00:05]} 49. Kg2 {[%clk 0:00:08]}  Nf4+ {[%clk 0:00:05]} 50. Kf2 {[%clk 0:00:08]}  Rb2+ {[%clk 0:00:06]} 51. Ke1 {[%clk 0:00:08]}  Nd3+ {[%clk 0:00:06]} 52. Kf1 {[%clk 0:00:09]}  g4 {[%clk 0:00:05]} 53. Rd4 {[%clk 0:00:07]}  Rb1+ {[%clk 0:00:04]} 54. Ke2 {[%clk 0:00:06]}  Nc5 {[%clk 0:00:04]} 55. Rd5+ {[%clk 0:00:06]}  Kh4 {[%clk 0:00:05]} 56. Nf5+ {[%clk 0:00:07]}  Kh3 {[%clk 0:00:05]} 57. Rd6 {[%clk 0:00:07]}  g3 {[%clk 0:00:05]} 58. Rh6+ {[%clk 0:00:07]}  Kg4 {[%clk 0:00:05]} 59. Ne3+ {[%clk 0:00:08]}  Kf4 {[%clk 0:00:06]} 60. Rh4+ {[%clk 0:00:06]}  Ke5 {[%clk 0:00:04]} 61. Nc4+ {[%clk 0:00:06]}  Kf5 {[%clk 0:00:04]} 62. Ne3+ {[%clk 0:00:07]}  Kf6 {[%clk 0:00:04]} 63. Rh6+ {[%clk 0:00:06]}  Kg5 {[%clk 0:00:03]} 64. Rxb6 {[%clk 0:00:07]}  g2 {[%clk 0:00:03]} 65. Nxg2 {[%clk 0:00:06]}  Na4 {[%clk 0:00:03]} 66. Rb8 {[%clk 0:00:05]}  Nc3+ {[%clk 0:00:03]} 67. Kd3 {[%clk 0:00:06]}  Nxb5 {[%clk 0:00:03]} 68. Ne3 {[%clk 0:00:04]}  Rb3+ {[%clk 0:00:03]} 69. Kc4 {[%clk 0:00:05]}  Rxe3 {[%clk 0:00:03]} 70. Rxb5+ {[%clk 0:00:05]}  Kf4 {[%clk 0:00:04]} 71. Rd5 {[%clk 0:00:05]}  Re4+ {[%clk 0:00:04]} 72. Rd4 {[%clk 0:00:06]}  Rxd4+ {[%clk 0:00:05]} 73. Kxd4 {[%clk 0:00:07]} 1/2-1/2


[Site "https://www.chess.com"]

[Event "Titled Tuesday Blitz August 16 Early 2022"]
[White "Salman, Pavel"]
[Black "Brodowski, Piotr"]
[WhiteFideId "24153753"]
[BlackFideId "1124480"]
[WhiteElo "2143"]
[BlackElo "2312"]
[Result "0-1"]
[Round "10"]
[TimeControl "180+2"]
[Date "2022.08.18"]
[WhiteClock "0:00:00"]
[BlackClock "0:00:00"]

1. Nf3 {[%clk 0:00:00]}  d6 {[%clk 0:00:00]} 2. g3 {[%clk 0:00:00]}  e5 {[%clk 0:00:00]} 3. d3 {[%clk 0:00:00]}  h6 {[%clk 0:00:00]} 4. Bg2 {[%clk 0:00:00]}  g6 {[%clk 0:00:00]} 5. O-O {[%clk 0:00:00]}  Ke7 {[%clk 0:00:00]} 6. c4 {[%clk 0:00:00]}  Kf6 {[%clk 0:00:00]} 7. Nc3 {[%clk 0:00:00]}  Kg7 {[%clk 0:00:00]} 8. b4 {[%clk 0:00:00]}  a5 {[%clk 0:00:00]} 9. b5 {[%clk 0:00:00]}  Kh7 {[%clk 0:00:00]} 10. d4 {[%clk 0:00:00]}  exd4 {[%clk 0:00:00]} 11. Nxd4 {[%clk 0:00:00]}  Bg7 {[%clk 0:00:00]} 12. Bb2 {[%clk 0:00:00]}  Nf6 {[%clk 0:00:00]} 13. Qc2 {[%clk 0:00:00]}  Nbd7 {[%clk 0:00:00]} 14. Rad1 {[%clk 0:00:00]}  Re8 {[%clk 0:00:00]} 15. e3 {[%clk 0:00:00]}  Nc5 {[%clk 0:00:00]} 16. h4 {[%clk 0:00:00]}  Qe7 {[%clk 0:00:00]} 17. a4 {[%clk 0:00:00]}  Bg4 {[%clk 0:00:00]} 18. Rd2 {[%clk 0:00:00]}  Rad8 {[%clk 0:00:00]} 19. Re1 {[%clk 0:00:00]}  Qf8 {[%clk 0:00:00]} 20. e4 {[%clk 0:00:00]}  Qh8 {[%clk 0:00:00]} 21. Nb3 {[%clk 0:00:00]}  Nfd7 {[%clk 0:00:00]} 22. Nxa5 {[%clk 0:00:00]}  Ne5 {[%clk 0:00:00]} 23. Nd5 {[%clk 0:00:00]}  c6 {[%clk 0:00:00]} 24. bxc6 {[%clk 0:00:00]}  bxc6 {[%clk 0:00:00]} 25. Ne3 {[%clk 0:00:00]}  Nf3+ {[%clk 0:00:00]} 26. Bxf3 {[%clk 0:00:00]}  Bxf3 {[%clk 0:00:00]} 27. Bxg7 {[%clk 0:00:00]}  Qxg7 {[%clk 0:00:00]} 28. Nxc6 {[%clk 0:00:00]}  Rc8 {[%clk 0:00:00]} 29. Nd4 {[%clk 0:00:00]}  Bxe4 {[%clk 0:00:00]} 30. Qd1 {[%clk 0:00:00]}  Ba8 {[%clk 0:00:00]} 31. Nd5 {[%clk 0:00:00]}  Rxe1+ {[%clk 0:00:00]} 32. Qxe1 {[%clk 0:00:00]}  Nxa4 {[%clk 0:00:00]} 33. Ne3 {[%clk 0:00:00]}  Qe5 {[%clk 0:00:00]} 34. Qe2 {[%clk 0:00:00]}  Nc3 {[%clk 0:00:00]} 35. Qd3 {[%clk 0:00:00]}  Ne4 {[%clk 0:00:00]} 36. Ra2 {[%clk 0:00:00]}  Nc5 {[%clk 0:00:00]} 37. Qe2 {[%clk 0:00:00]}  Qxd4 {[%clk 0:00:00]} 38. Rd2 {[%clk 0:00:00]}  Qe4 {[%clk 0:00:00]} 39. f3 {[%clk 0:00:00]}  Qxf3 {[%clk 0:00:00]} 40. Qxf3 {[%clk 0:00:00]}  Bxf3 {[%clk 0:00:00]} 41. Rxd6 {[%clk 0:00:00]}  Kg7 {[%clk 0:00:00]} 42. Kf2 {[%clk 0:00:00]}  Bb7 {[%clk 0:00:00]} 43. Ke2 {[%clk 0:00:00]}  Bc6 {[%clk 0:00:00]} 44. g4 {[%clk 0:00:00]}  Ne4 {[%clk 0:00:00]} 45. Rd1 {[%clk 0:00:00]}  Nf6 {[%clk 0:00:00]} 46. g5 {[%clk 0:00:00]}  hxg5 {[%clk 0:00:00]} 47. hxg5 {[%clk 0:00:00]}  Ne4 {[%clk 0:00:00]} 48. Ra1 {[%clk 0:00:00]}  Nxg5 {[%clk 0:00:00]} 49. Ra7 {[%clk 0:00:00]}  Ne6 {[%clk 0:00:00]} 50. Kd3 {[%clk 0:00:00]}  Rc7 {[%clk 0:00:00]} 51. Ra6 {[%clk 0:00:00]}  Nc5+ {[%clk 0:00:00]} 0-1


[Site "https://www.chess.com"]

[Event "Titled Tuesday Blitz August 16 Early 2022"]
[White "Senthil Maran K"]
[Black "Demchenko, Anton"]
[WhiteFideId "25035681"]
[BlackFideId "4160258"]
[WhiteElo "2124"]
[BlackElo "2539"]
[Result "0-1"]
[Round "10"]
[TimeControl "180+1"]
[Date "2022.08.16"]
[WhiteClock "0:00:01"]
[BlackClock "0:00:58"]

1. c4 {[%clk 0:03:00]}  Nf6 {[%clk 0:02:41]} 2. g3 {[%clk 0:02:59]}  g6 {[%clk 0:02:39]} 3. Bg2 {[%clk 0:02:59]}  Bg7 {[%clk 0:02:40]} 4. Nf3 {[%clk 0:02:59]}  O-O {[%clk 0:02:41]} 5. O-O {[%clk 0:03:00]}  d6 {[%clk 0:02:41]} 6. Nc3 {[%clk 0:02:59]}  Nbd7 {[%clk 0:02:42]} 7. d4 {[%clk 0:02:59]}  e5 {[%clk 0:02:41]} 8. dxe5 {[%clk 0:02:36]}  dxe5 {[%clk 0:02:41]} 9. h3 {[%clk 0:02:33]}  c6 {[%clk 0:02:36]} 10. Be3 {[%clk 0:02:32]}  Qe7 {[%clk 0:02:37]} 11. Qb3 {[%clk 0:02:32]}  Ne8 {[%clk 0:02:26]} 12. Rfd1 {[%clk 0:02:15]}  f5 {[%clk 0:02:25]} 13. Rac1 {[%clk 0:01:25]}  e4 {[%clk 0:02:14]} 14. Nd4 {[%clk 0:01:23]}  Ne5 {[%clk 0:02:14]} 15. Na4 {[%clk 0:01:02]}  Kh8 {[%clk 0:02:07]} 16. Qa3 {[%clk 0:00:58]}  Qf7 {[%clk 0:02:01]} 17. Qb4 {[%clk 0:00:20]}  Nf6 {[%clk 0:01:59]} 18. f4 {[%clk 0:00:18]}  Ned7 {[%clk 0:01:33]} 19. Nb3 {[%clk 0:00:17]}  Re8 {[%clk 0:01:28]} 20. Nac5 {[%clk 0:00:16]}  b6 {[%clk 0:01:18]} 21. Nxd7 {[%clk 0:00:16]}  Bxd7 {[%clk 0:01:19]} 22. Qd6 {[%clk 0:00:15]}  c5 {[%clk 0:01:14]} 23. Rd2 {[%clk 0:00:10]}  Be6 {[%clk 0:01:14]} 24. Rcd1 {[%clk 0:00:09]}  Bxc4 {[%clk 0:01:10]} 25. Nc1 {[%clk 0:00:09]}  Rac8 {[%clk 0:01:04]} 26. Rc2 {[%clk 0:00:02]}  Nd5 {[%clk 0:00:59]} 27. b3 {[%clk 0:00:01]}  Nxe3 {[%clk 0:00:58]} 0-1


[Site "https://www.chess.com"]

[Event "Titled Tuesday Blitz August 16 Early 2022"]
[White "Shapiro, Daniel"]
[Black "Filippova, Margarita"]
[WhiteFideId "2001780"]
[BlackFideId "34199680"]
[WhiteElo "2284"]
[BlackElo "1734"]
[Result "0-1"]
[Round "10"]
[TimeControl "180+2"]
[Date "2022.08.18"]
[WhiteClock "0:00:00"]
[BlackClock "0:00:00"]

1. d4 {[%clk 0:00:00]}  Nf6 {[%clk 0:00:00]} 2. c4 {[%clk 0:00:00]}  e6 {[%clk 0:00:00]} 3. g3 {[%clk 0:00:00]}  Bb4+ {[%clk 0:00:00]} 4. Bd2 {[%clk 0:00:00]}  Qe7 {[%clk 0:00:00]} 5. Bg2 {[%clk 0:00:00]}  Nc6 {[%clk 0:00:00]} 6. Nf3 {[%clk 0:00:00]}  Bxd2+ {[%clk 0:00:00]} 7. Nbxd2 {[%clk 0:00:00]}  O-O {[%clk 0:00:00]} 8. O-O {[%clk 0:00:00]}  d6 {[%clk 0:00:00]} 9. e4 {[%clk 0:00:00]}  e5 {[%clk 0:00:00]} 10. d5 {[%clk 0:00:00]}  Nb8 {[%clk 0:00:00]} 11. Ne1 {[%clk 0:00:00]}  Ne8 {[%clk 0:00:00]} 12. Nd3 {[%clk 0:00:00]}  f5 {[%clk 0:00:00]} 13. f4 {[%clk 0:00:00]}  fxe4 {[%clk 0:00:00]} 14. Nxe4 {[%clk 0:00:00]}  Bf5 {[%clk 0:00:00]} 15. Re1 {[%clk 0:00:00]}  Nd7 {[%clk 0:00:00]} 16. g4 {[%clk 0:00:00]}  Bxe4 {[%clk 0:00:00]} 17. Bxe4 {[%clk 0:00:00]}  Qh4 {[%clk 0:00:00]} 18. Bf5 {[%clk 0:00:00]}  Ndf6 {[%clk 0:00:00]} 19. Be6+ {[%clk 0:00:00]}  Kh8 {[%clk 0:00:00]} 20. fxe5 {[%clk 0:00:00]}  dxe5 {[%clk 0:00:00]} 21. Nxe5 {[%clk 0:00:00]}  Nd6 {[%clk 0:00:00]} 22. c5 {[%clk 0:00:00]}  Nfe4 {[%clk 0:00:00]} 23. Rf1 {[%clk 0:00:00]}  Nxc5 {[%clk 0:00:00]} 24. Rc1 {[%clk 0:00:00]}  Rxf1+ {[%clk 0:00:00]} 25. Qxf1 {[%clk 0:00:00]}  Nxe6 {[%clk 0:00:00]} 26. dxe6 {[%clk 0:00:00]}  Qh6 {[%clk 0:00:00]} 27. Rxc7 {[%clk 0:00:00]}  Qe3+ {[%clk 0:00:00]} 28. Qf2 {[%clk 0:00:00]}  Qxe5 {[%clk 0:00:00]} 29. e7 {[%clk 0:00:00]}  Rg8 {[%clk 0:00:00]} 30. Qf8 {[%clk 0:00:00]}  Qd4+ {[%clk 0:00:00]} 31. Kg2 {[%clk 0:00:00]}  Qxg4+ {[%clk 0:00:00]} 32. Kf1 {[%clk 0:00:00]}  Qe4 {[%clk 0:00:00]} 33. Rd7 {[%clk 0:00:00]}  Qc4+ {[%clk 0:00:00]} 34. Ke1 {[%clk 0:00:00]}  Qe6+ {[%clk 0:00:00]} 0-1


[Site "https://www.chess.com"]